{"text_format":"3","workbook":"xlsx","n_sheets":1,"sheets":["UDSTYRSLAGERLISTE"],"not_rendered":{"defined_names":5},"read":"whole","date_system":"1900"}

{"sheet":"UDSTYRSLAGERLISTE","index":0,"n_rows":9,"n_cols":19,"rows_kept":9,"merged":[[0,1,0,5],[0,6,0,9],[0,10,0,12],[0,13,0,14],[2,1,2,6],[2,7,2,18]]}
[null,"UDSTYRSLAGERLISTE"]
[]
[null,"FYSISK STAND",{"$nulls":5},"ØKONOMISK FORHOLD"]
[null,"Aktiv- eller\nserienummer","Beskrivelse af artikel (varemærke og model)","Placering","Stand","Forhandler","Resterende levetid ","Startværdi","Udbetaling","Dato for køb eller leje","Lånets løbetid i år","Rentesats for lån","Månedlig betaling","Månedlige driftsomkostninger","Samlet månedlig omkostning","Forventet værdi ved udløb af lånets løbetid","Årlig lineær\n afskrivning","Månedlig lineær afskrivning","Aktuel værdi"]
[null,123,"Varemærke/model","Hovedafdeling","God","lokal",5,{"v":180000,"d":"180,000.00 kr."},{"v":30000,"d":"30,000.00 kr."},{"$f":"DATE(YEAR(TODAY())-2, 1,1)","v":"2016-01-01"},4,{"v":0.1,"d":"10.00%"},{"$f":"IFERROR(IF(AND(Data[[#This Row],[Startværdi]]>0,Data[[#This Row],[Startværdi]]<>Data[[#This Row],[Udbetaling]]),-1*PMT(Data[[#This Row],[Rentesats for lån]]/12,Data[[#This Row],[Lånets løbetid i år]]*12,Data[[#This Row],[Startværdi]]-Data[[#This Row],[Udbetaling]]),0),0)","v":{"v":3804.387515212078,"d":"3,804.39 kr."}},{"v":1200,"d":"1,200.00 kr."},{"$f":"IFERROR(Data[[#This Row],[Månedlige driftsomkostninger]]+Data[[#This Row],[Månedlig betaling]],\"\")","v":{"v":5004.387515212078,"d":"5,004.39 kr."}},{"v":120000,"d":"120,000.00 kr."},{"$f":"IFERROR(IF(Data[[#This Row],[Startværdi]]>0,SLN(Data[[#This Row],[Startværdi]],Data[[#This Row],[Forventet værdi ved udløb af lånets løbetid]],Data[[#This Row],[Resterende levetid ]]),0),0)","v":{"v":12000,"d":"12,000.00 kr."}},{"$f":"IFERROR(Data[[#This Row],[Årlig lineær\n afskrivning]]/12,0)","v":{"v":1000,"d":"1,000.00 kr."}},{"$f":"IFERROR(Data[[#This Row],[Startværdi]]-(Data[[#This Row],[Årlig lineær\n afskrivning]]*((TODAY()-Data[[#This Row],[Dato for køb eller leje]])/365)),0)","v":{"v":150082.19178082192,"d":"150,082.19 kr."}}]
[null,456,"Varemærke/model","Hovedafdeling","Fremragende","lokal",3,{"v":30000,"d":"30,000.00 kr."},{"v":30000,"d":"30,000.00 kr."},{"$f":"DATE(YEAR(TODAY())-1, 1,1)","v":"2017-01-01"},null,null,{"$f":"IFERROR(IF(AND(Data[[#This Row],[Startværdi]]>0,Data[[#This Row],[Startværdi]]<>Data[[#This Row],[Udbetaling]]),-1*PMT(Data[[#This Row],[Rentesats for lån]]/12,Data[[#This Row],[Lånets løbetid i år]]*12,Data[[#This Row],[Startværdi]]-Data[[#This Row],[Udbetaling]]),0),0)","v":{"v":0,"d":"0.00 kr."}},{"v":120,"d":"120.00 kr."},{"$f":"IFERROR(Data[[#This Row],[Månedlige driftsomkostninger]]+Data[[#This Row],[Månedlig betaling]],\"\")","v":{"v":120,"d":"120.00 kr."}},null,{"$f":"IFERROR(IF(Data[[#This Row],[Startværdi]]>0,SLN(Data[[#This Row],[Startværdi]],Data[[#This Row],[Forventet værdi ved udløb af lånets løbetid]],Data[[#This Row],[Resterende levetid ]]),0),0)","v":{"v":10000,"d":"10,000.00 kr."}},{"$f":"IFERROR(Data[[#This Row],[Årlig lineær\n afskrivning]]/12,0)","v":{"v":833.3333333333334,"d":"833.33 kr."}},{"$f":"IFERROR(Data[[#This Row],[Startværdi]]-(Data[[#This Row],[Årlig lineær\n afskrivning]]*((TODAY()-Data[[#This Row],[Dato for køb eller leje]])/365)),0)","v":{"v":15095.890410958904,"d":"15,095.89 kr."}}]
[null,789,"Varemærke/model","Østkysten","Rimelig","lokal",6,{"v":300000,"d":"300,000.00 kr."},{"v":120000,"d":"120,000.00 kr."},{"$f":"TODAY()","v":"2018-06-29"},5,{"v":0.05,"d":"5.00%"},{"$f":"IFERROR(IF(AND(Data[[#This Row],[Startværdi]]>0,Data[[#This Row],[Startværdi]]<>Data[[#This Row],[Udbetaling]]),-1*PMT(Data[[#This Row],[Rentesats for lån]]/12,Data[[#This Row],[Lånets løbetid i år]]*12,Data[[#This Row],[Startværdi]]-Data[[#This Row],[Udbetaling]]),0),0)","v":{"v":3396.8220559219685,"d":"3,396.82 kr."}},{"v":240,"d":"240.00 kr."},{"$f":"IFERROR(Data[[#This Row],[Månedlige driftsomkostninger]]+Data[[#This Row],[Månedlig betaling]],\"\")","v":{"v":3636.8220559219685,"d":"3,636.82 kr."}},{"v":9000,"d":"9,000.00 kr."},{"$f":"IFERROR(IF(Data[[#This Row],[Startværdi]]>0,SLN(Data[[#This Row],[Startværdi]],Data[[#This Row],[Forventet værdi ved udløb af lånets løbetid]],Data[[#This Row],[Resterende levetid ]]),0),0)","v":{"v":48500,"d":"48,500.00 kr."}},{"$f":"IFERROR(Data[[#This Row],[Årlig lineær\n afskrivning]]/12,0)","v":{"v":4041.6666666666665,"d":"4,041.67 kr."}},{"$f":"IFERROR(Data[[#This Row],[Startværdi]]-(Data[[#This Row],[Årlig lineær\n afskrivning]]*((TODAY()-Data[[#This Row],[Dato for køb eller leje]])/365)),0)","v":{"v":300000,"d":"300,000.00 kr."}}]
[{"$nulls":12},{"$f":"IFERROR(IF(AND(Data[[#This Row],[Startværdi]]>0,Data[[#This Row],[Startværdi]]<>Data[[#This Row],[Udbetaling]]),-1*PMT(Data[[#This Row],[Rentesats for lån]]/12,Data[[#This Row],[Lånets løbetid i år]]*12,Data[[#This Row],[Startværdi]]-Data[[#This Row],[Udbetaling]]),0),0)","v":{"v":0,"d":"0.00 kr."}},null,{"$f":"IFERROR(Data[[#This Row],[Månedlige driftsomkostninger]]+Data[[#This Row],[Månedlig betaling]],\"\")","v":{"v":0,"d":"0.00 kr."}},null,{"$f":"IFERROR(IF(Data[[#This Row],[Startværdi]]>0,SLN(Data[[#This Row],[Startværdi]],Data[[#This Row],[Forventet værdi ved udløb af lånets løbetid]],Data[[#This Row],[Resterende levetid ]]),0),0)","v":{"v":0,"d":"0.00 kr."}},{"$f":"IFERROR(Data[[#This Row],[Årlig lineær\n afskrivning]]/12,0)","v":{"v":0,"d":"0.00 kr."}},{"$f":"IFERROR(Data[[#This Row],[Startværdi]]-(Data[[#This Row],[Årlig lineær\n afskrivning]]*((TODAY()-Data[[#This Row],[Dato for køb eller leje]])/365)),0)","v":{"v":0,"d":"0.00 kr."}}]
[{"$nulls":12},{"$f":"IFERROR(IF(AND(Data[[#This Row],[Startværdi]]>0,Data[[#This Row],[Startværdi]]<>Data[[#This Row],[Udbetaling]]),-1*PMT(Data[[#This Row],[Rentesats for lån]]/12,Data[[#This Row],[Lånets løbetid i år]]*12,Data[[#This Row],[Startværdi]]-Data[[#This Row],[Udbetaling]]),0),0)","v":{"v":0,"d":"0.00 kr."}},null,{"$f":"IFERROR(Data[[#This Row],[Månedlige driftsomkostninger]]+Data[[#This Row],[Månedlig betaling]],\"\")","v":{"v":0,"d":"0.00 kr."}},null,{"$f":"IFERROR(IF(Data[[#This Row],[Startværdi]]>0,SLN(Data[[#This Row],[Startværdi]],Data[[#This Row],[Forventet værdi ved udløb af lånets løbetid]],Data[[#This Row],[Resterende levetid ]]),0),0)","v":{"v":0,"d":"0.00 kr."}},{"$f":"IFERROR(Data[[#This Row],[Årlig lineær\n afskrivning]]/12,0)","v":{"v":0,"d":"0.00 kr."}},{"$f":"IFERROR(Data[[#This Row],[Startværdi]]-(Data[[#This Row],[Årlig lineær\n afskrivning]]*((TODAY()-Data[[#This Row],[Dato for køb eller leje]])/365)),0)","v":{"v":0,"d":"0.00 kr."}}]